fUST/lending_fUST_20250806
["ID","MTS","AMOUNT","RATE_DAILY","PERIOD"]
[377470663,1754419852011,-388.98,0.00030684,2]
[377470664,1754419852020,-460.0,0.00030684,2]
[377470665,1754419852134,-460.0,0.00030684,2]
[377470666,1754419852144,-161.36,0.00030684,2]
[377470667,1754419852154,-460.0,0.00030684,2]
[377470668,1754419852163,-579.23,0.00030684,2]
[377470669,1754419852172,-3997.23,0.00030684,2]
[377470670,1754419852182,-674.09,0.00030684,2]
[377470671,1754419852191,-516.72,0.00030684,2]
[377470672,1754419852200,-193.92,0.00030684,2]
[377470673,1754419852210,-460.0,0.00030684,2]
[377470674,1754419852219,-1204.67,0.00030684,2]
[377470675,1754419852228,-810.88,0.00030684,2]
[377470676,1754419852237,-664.72,0.00030684,2]
[377470677,1754419852246,-477.36,0.00030684,2]
[377470678,1754419852255,-460.0,0.00030684,2]
[377470679,1754419852265,-560.0,0.00030716,2]
[377470680,1754419852274,-155.69,0.00030753,15]
[377470681,1754419852283,-155.69,0.00030853,15]
[377470682,1754419852292,-155.69,0.00030953,15]
[377470683,1754419852301,-460.0,0.00030958,2]
[377470684,1754419852311,-460.0,0.00030958,2]
[377470685,1754419852320,-460.36,0.00030958,2]
[377470686,1754419852330,-460.0,0.00030958,2]
[377470687,1754419852339,-801.41,0.00030958,2]
[377470688,1754419852349,-789.85,0.00030958,2]
[377470689,1754419852361,-522.33,0.00030958,2]
[377470690,1754419852378,-1079.38,0.00030958,2]
[377470691,1754419852388,-460.0,0.00030958,2]
[377470692,1754419852399,-460.0,0.00030958,2]
[377470693,1754419852410,-3041.31,0.00030958,2]
[377470694,1754419852420,-837.92,0.00030958,2]
[377470695,1754419852432,-820.86,0.00030958,2]
[377470696,1754419852444,-994.47,0.00030958,2]
[377470697,1754419852454,-719.43,0.00030958,2]
[377470698,1754419852465,-460.0,0.00030958,2]
[377470699,1754419852475,-460.0,0.00030958,2]
[377470700,1754419852485,-483.6,0.00030958,2]
[377470701,1754419852495,-463.11,0.00030958,2]
[377470702,1754419852506,-769.44,0.00030958,2]
[377470703,1754419852517,-563.71,0.00030958,2]
[377470704,1754419852528,-499.78,0.00030958,2]
[377470705,1754419852539,-904.26,0.00030958,2]
[377470706,1754419852550,-1124.32,0.00030958,2]
[377470707,1754419852560,-460.0,0.00030958,2]
[377470708,1754419852570,-488.64,0.00030958,2]
[377470709,1754419852580,-38601.17,0.00030958,2]
[377470710,1754419852590,-2382.03,0.00030958,2]
[377470711,1754419852599,-460.0,0.00030958,2]
[377470712,1754419852609,-1199.19,0.00030958,2]
[377470713,1754419852618,-190.85,0.00030958,2]
[377470714,1754419852635,-460.0,0.00030958,2]
[377470715,1754419852644,-460.0,0.00030958,2]
[377470716,1754419852654,-579.23,0.00030958,2]
[377470717,1754419852663,-3997.23,0.00030958,2]
[377470718,1754419852672,-674.09,0.00030958,2]
[377470719,1754419852681,-516.72,0.00030958,2]
[377470720,1754419852691,-460.0,0.00030958,2]
[377470721,1754419852700,-1204.67,0.00030958,2]
[377470722,1754419852709,-810.88,0.00030958,2]
[377470723,1754419852719,-664.72,0.00030958,2]
[377470724,1754419852728,-477.36,0.00030958,2]
[377470725,1754419852738,-460.0,0.00030958,2]
[377470726,1754419852748,-200.0,0.00031038,15]
[377470727,1754419852758,-200.0,0.00031038,15]
[377470728,1754419852767,-300.0,0.00031038,15]
[377470729,1754419852777,-155.93777179,0.00031053,15]
[377470730,1754419852786,-200.0,0.00031156,120]
[377470731,1754419852795,-933.4,0.00031231,7]
[377470732,1754419852805,-460.0,0.00031232,2]
[377470733,1754419852814,-460.0,0.00031232,2]
[377470734,1754419852823,-460.36,0.00031232,2]
[377470735,1754419852833,-460.0,0.00031232,2]
[377470736,1754419852842,-801.41,0.00031232,2]
[377470737,1754419852852,-789.85,0.00031232,2]
[377470738,1754419852861,-522.33,0.00031232,2]
[377470739,1754419852874,-1079.38,0.00031232,2]
[377470740,1754419852884,-460.0,0.00031232,2]
[377470741,1754419852893,-460.0,0.00031232,2]
[377470742,1754419852903,-3041.31,0.00031232,2]
[377470743,1754419852912,-837.92,0.00031232,2]
[377470744,1754419852921,-820.86,0.00031232,2]
[377470745,1754419852930,-994.47,0.00031232,2]
[377470746,1754419852940,-719.43,0.00031232,2]
[377470747,1754419852949,-460.0,0.00031232,2]
[377470748,1754419852959,-460.0,0.00031232,2]
[377470749,1754419852968,-483.6,0.00031232,2]
[377470750,1754419852978,-463.11,0.00031232,2]
[377470751,1754419852987,-769.44,0.00031232,2]
[377470752,1754419852996,-563.71,0.00031232,2]
[377470753,1754419853006,-499.78,0.00031232,2]
[377470754,1754419853015,-904.26,0.00031232,2]
[377470755,1754419853025,-1124.32,0.00031232,2]
[377470756,1754419853034,-460.0,0.00031232,2]
[377470757,1754419853044,-488.64,0.00031232,2]
[377470758,1754419853053,-38601.17,0.00031232,2]
[377470759,1754419853063,-2382.03,0.00031232,2]
[377470760,1754419853072,-460.0,0.00031232,2]
[377470761,1754419853082,-1199.19,0.00031232,2]
[377470762,1754419853092,-460.0,0.00031232,2]
[377470763,1754419853101,-460.0,0.00031232,2]
[377470764,1754419853110,-579.23,0.00031232,2]
[377470765,1754419853119,-3997.23,0.00031232,2]
[377470766,1754419853131,-674.09,0.00031232,2]
[377470767,1754419853140,-516.72,0.00031232,2]
[377470768,1754419853149,-562.38,0.00031232,2]
[377470769,1754419853159,-1204.67,0.00031232,2]
[377470770,1754419853168,-810.88,0.00031232,2]
[377470771,1754419853177,-293.9572123,0.00031232,14]
[377470772,1754419853186,-664.72,0.00031232,2]
[377470773,1754419853195,-477.36,0.00031232,2]
[377470774,1754419853204,-460.0,0.00031232,2]
[377470775,1754419853214,-660.0,0.00031264,2]
[377470776,1754419853223,-1534.57366692,0.00031304,30]
[377470777,1754419853233,-150.0,0.00031305,2]
[377470778,1754419853243,-516.88757006,0.00031305,10]
[377470779,1754419853257,-150.0,0.00031305,10]
[377470780,1754419853266,-248.42535,0.00031506,2]
[377470781,1754419853276,-460.0,0.00031506,2]
[377470782,1754419853286,-460.36,0.00031506,2]
[377470783,1754419853296,-801.41,0.00031506,2]
[377470784,1754419853306,-789.85,0.00031506,2]
[377470785,1754419853315,-522.33,0.00031506,2]
[377470786,1754419853324,-1079.38,0.00031506,2]
[377470787,1754419853333,-460.0,0.00031506,2]
[377470788,1754419853343,-460.0,0.00031506,2]
[377470789,1754419853352,-3041.31,0.00031506,2]
[377470790,1754419853363,-837.92,0.00031506,2]
[377470791,1754419853375,-820.86,0.00031506,2]
[377470792,1754419853385,-994.47,0.00031506,2]
[377470793,1754419853394,-719.43,0.00031506,2]
[377470794,1754419853405,-460.0,0.00031506,2]
[377470795,1754419853414,-460.0,0.00031506,2]
[377470796,1754419853423,-483.6,0.00031506,2]
[377470797,1754419853432,-463.11,0.00031506,2]
[377470798,1754419853443,-769.44,0.00031506,2]
[377470799,1754419853452,-563.71,0.00031506,2]
[377470800,1754419853461,-499.78,0.00031506,2]
[377470801,1754419853470,-904.26,0.00031506,2]
[377470802,1754419853479,-1124.32,0.00031506,2]
[377470803,1754419853489,-460.0,0.00031506,2]
[377470804,1754419853498,-38601.17,0.00031506,2]
[377470805,1754419853507,-488.64,0.00031506,2]
[377470806,1754419853523,-2382.03,0.00031506,2]
[377470807,1754419853533,-323.28,0.00031506,2]
[377470808,1754419853543,-1199.19,0.00031506,2]
[377470809,1754419853552,-460.0,0.00031506,2]
[377470810,1754419853561,-460.0,0.00031506,2]
[377470811,1754419853570,-579.23,0.00031506,2]
[377470812,1754419853579,-3997.23,0.00031506,2]
[377470813,1754419853588,-674.09,0.00031506,2]
[377470814,1754419853598,-516.72,0.00031506,2]
[377470815,1754419853607,-1204.67,0.00031506,2]
[377470816,1754419853617,-810.88,0.00031506,2]
[377470817,1754419853628,-664.72,0.00031506,2]
[377470818,1754419853637,-477.36,0.00031506,2]
[377470819,1754419853646,-460.0,0.00031506,2]
[377470820,1754419853655,-211.222188,0.00031588,2]
[377470821,1754419853664,-460.0,0.0003178,2]
[377470822,1754419853674,-460.36,0.0003178,2]
[377470823,1754419853684,-801.41,0.0003178,2]
[377470824,1754419853693,-789.85,0.0003178,2]
[377470825,1754419853703,-522.33,0.0003178,2]
[377470826,1754419853713,-1079.38,0.0003178,2]
[377470827,1754419853722,-460.0,0.0003178,2]
[377470828,1754419853732,-365.34,0.0003178,2]
[377470829,1754419853741,-3041.31,0.0003178,2]
[377470830,1754419853751,-837.92,0.0003178,2]
[377470831,1754419853759,-820.86,0.0003178,2]
[377470832,1754419853768,-994.47,0.0003178,2]
[377470833,1754419853778,-719.43,0.0003178,2]
[377470834,1754419853787,-453.63,0.0003178,2]
[377470835,1754419853799,-460.0,0.0003178,2]
[377470836,1754419853808,-483.6,0.0003178,2]
[377470837,1754419853817,-463.11,0.0003178,2]
[377470838,1754419853826,-769.44,0.0003178,2]
[377470839,1754419853836,-563.71,0.0003178,2]
[377470840,1754419853845,-499.78,0.0003178,2]
[377470841,1754419853856,-904.26,0.0003178,2]
[377470842,1754419853866,-1124.32,0.0003178,2]
[377470843,1754419853877,-460.0,0.0003178,2]
[377470844,1754419853887,-38601.17,0.0003178,2]
[377470845,1754419853897,-488.64,0.0003178,2]
[377470846,1754419853907,-2382.03,0.0003178,2]
[377470847,1754419853917,-1199.19,0.0003178,2]
[377470848,1754419853927,-460.0,0.0003178,2]
[377470849,1754419853936,-460.0,0.0003178,2]
[377470850,1754419853945,-579.23,0.0003178,2]
[377470851,1754419853954,-3997.23,0.0003178,2]
[377470852,1754419853964,-674.09,0.0003178,2]
[377470853,1754419853973,-516.72,0.0003178,2]
[377470854,1754419853983,-1204.67,0.0003178,2]
[377470855,1754419853992,-810.88,0.0003178,2]
[377470856,1754419854001,-664.72,0.0003178,2]
[377470857,1754419854011,-477.36,0.0003178,2]
[377470858,1754419854020,-460.0,0.0003178,2]
[377470859,1754419854029,-760.0,0.00031812,2]
[377470860,1754419854039,-460.0,0.00032054,2]
[377470861,1754419854049,-460.36,0.00032054,2]
[377470862,1754419854059,-801.41,0.00032054,2]
[377470863,1754419854070,-789.85,0.00032054,2]
[377470864,1754419854079,-522.33,0.00032054,2]
[377470865,1754419854089,-1079.38,0.00032054,2]
[377470866,1754419854186,-460.0,0.00032054,2]
[377470867,1754419854196,-3041.31,0.00032054,2]
[377470868,1754419854205,-837.92,0.00032054,2]
[377470869,1754419854215,-820.86,0.00032054,2]
[377470870,1754419854225,-994.47,0.00032054,2]
[377470871,1754419854234,-719.43,0.00032054,2]
[377470872,1754419854244,-460.0,0.00032054,2]
[377470873,1754419854254,-483.6,0.00032054,2]
[377470874,1754419854263,-463.11,0.00032054,2]
[377470875,1754419854274,-769.44,0.00032054,2]
[377470876,1754419854283,-563.71,0.00032054,2]
[377470877,1754419854294,-499.78,0.00032054,2]
[377470878,1754419854304,-904.26,0.00032054,2]
[377470879,1754419854314,-1124.32,0.00032054,2]
[377470880,1754419854325,-460.0,0.00032054,2]
[377470881,1754419854335,-38601.17,0.00032054,2]
[377470882,1754419854346,-488.64,0.00032054,2]
[377470883,1754419854356,-2382.03,0.00032054,2]
[377470884,1754419854369,-1199.19,0.00032054,2]
[377470885,1754419854380,-460.0,0.00032054,2]
[377470886,1754419854390,-460.0,0.00032054,2]
[377470887,1754419854400,-3997.23,0.00032054,2]
[377470888,1754419854410,-579.23,0.00032054,2]
[377470889,1754419854419,-674.09,0.00032054,2]
[377470890,1754419854428,-516.72,0.00032054,2]
[377470891,1754419854440,-1204.67,0.00032054,2]
[377470892,1754419854450,-810.88,0.00032054,2]
[377470893,1754419854460,-664.72,0.00032054,2]
[377470894,1754419854469,-477.36,0.00032054,2]
[377470895,1754419854478,-460.0,0.00032054,2]
[377470896,1754419854487,-240.65,0.00032077,2]
[377470897,1754419854497,-460.0,0.00032328,2]
[377470898,1754419854507,-460.36,0.00032328,2]
[377470899,1754419854516,-801.41,0.00032328,2]
[377470900,1754419854525,-789.85,0.00032328,2]
[377470901,1754419854535,-522.33,0.00032328,2]
[377470902,1754419854544,-1079.38,0.00032328,2]
[377470903,1754419854554,-460.0,0.00032328,2]
[377470904,1754419854563,-3041.31,0.00032328,2]
[377470905,1754419854573,-837.92,0.00032328,2]
[377470906,1754419854582,-820.86,0.00032328,2]
[377470907,1754419854592,-994.47,0.00032328,2]
[377470908,1754419854603,-719.43,0.00032328,2]
[377470909,1754419854612,-460.0,0.00032328,2]
[377470910,1754419854625,-483.6,0.00032328,2]
[377470911,1754419854634,-463.11,0.00032328,2]
[377470912,1754419854644,-769.44,0.00032328,2]
[377470913,1754419854654,-563.71,0.00032328,2]
[377470914,1754419854664,-499.78,0.00032328,2]
[377470915,1754419854673,-904.26,0.00032328,2]
[377470916,1754419854683,-460.0,0.00032328,2]
[377470917,1754419854692,-1124.32,0.00032328,2]
[377470918,1754419854702,-38601.17,0.00032328,2]
[377470919,1754419854711,-488.64,0.00032328,2]
[377470920,1754419854720,-2382.03,0.00032328,2]
[377470921,1754419854730,-1199.19,0.00032328,2]
[377470922,1754419854739,-460.0,0.00032328,2]
[377470923,1754419854748,-460.0,0.00032328,2]
[377470924,1754419854757,-3997.23,0.00032328,2]
[377470925,1754419854767,-579.23,0.00032328,2]
[377470926,1754419854776,-674.09,0.00032328,2]
[377470927,1754419854785,-516.72,0.00032328,2]
[377470928,1754419854794,-1204.67,0.00032328,2]
[377470929,1754419854804,-810.88,0.00032328,2]
[377470930,1754419854813,-664.72,0.00032328,2]
[377470931,1754419854824,-477.36,0.00032328,2]
[377470932,1754419854833,-460.0,0.00032328,2]
[377470933,1754419854842,-860.0,0.0003236,2]
[377470934,1754419854851,-460.0,0.00032602,2]
[377470935,1754419854861,-460.36,0.00032602,2]
[377470936,1754419854870,-801.41,0.00032602,2]
[377470937,1754419854883,-789.85,0.00032602,2]
[377470938,1754419854892,-522.33,0.00032602,2]
[377470939,1754419854902,-1079.38,0.00032602,2]
[377470940,1754419854911,-460.0,0.00032602,2]
[377470941,1754419854920,-3041.31,0.00032602,2]
[377470942,1754419854930,-837.92,0.00032602,2]
[377470943,1754419854940,-820.86,0.00032602,2]
[377470944,1754419854950,-994.47,0.00032602,2]
[377470945,1754419854959,-719.43,0.00032602,2]
[377470946,1754419854969,-379.02854648,0.00032602,2]
[377470947,1754419854979,-483.6,0.00032602,2]
[377470948,1754419854989,-463.11,0.00032602,2]
[377470949,1754419854998,-769.44,0.00032602,2]
[377470950,1754419855009,-563.71,0.00032602,2]
[377470951,1754419855019,-499.78,0.00032602,2]
[377470952,1754419855028,-904.26,0.00032602,2]
[377470953,1754419855038,-283.2,0.00032602,2]
[377470954,1754419855047,-1124.32,0.00032602,2]
[377470955,1754419855056,-38601.17,0.00032602,2]
[377470956,1754419855066,-488.64,0.00032602,2]
[377470957,1754419855075,-2382.03,0.00032602,2]
[377470958,1754419855084,-1199.19,0.00032602,2]
[377470959,1754419855093,-460.0,0.00032602,2]
[377470960,1754419855102,-460.0,0.00032602,2]
[377470961,1754419855111,-3997.23,0.00032602,2]
[377470962,1754419855121,-579.23,0.00032602,2]
[377470963,1754419855131,-674.09,0.00032602,2]
[377470964,1754419855141,-516.72,0.00032602,2]
[377470965,1754419855150,-1204.67,0.00032602,2]
[377470966,1754419855159,-810.88,0.00032602,2]
[377470967,1754419855171,-664.72,0.00032602,2]
[377470968,1754419855183,-477.36,0.00032602,2]
[377470969,1754419855192,-460.0,0.00032602,2]
[377470970,1754419855202,-500.0,0.00032609,5]
[377470971,1754419855212,-823.0,0.00032649,2]
[377470972,1754419855221,-460.0,0.00032876,2]
[377470973,1754419855231,-460.36,0.00032876,2]
[377470974,1754419855241,-801.41,0.00032876,2]
[377470975,1754419855250,-789.85,0.00032876,2]
[377470976,1754419855259,-500.0,0.00032876,120]
[377470977,1754419855269,-522.33,0.00032876,2]
[377470978,1754419855278,-1079.38,0.00032876,2]
[377470979,1754419855288,-460.0,0.00032876,2]
[377470980,1754419855297,-3041.31,0.00032876,2]
[377470981,1754419855307,-837.92,0.00032876,2]
[377470982,1754419855316,-820.86,0.00032876,2]
[377470983,1754419855325,-994.47,0.00032876,2]
[377470984,1754419855335,-719.43,0.00032876,2]
[377470985,1754419855344,-483.6,0.00032876,2]
[377470986,1754419855353,-463.11,0.00032876,2]
[377470987,1754419855364,-769.44,0.00032876,2]
[377470988,1754419855375,-563.71,0.00032876,2]
[377470989,1754419855385,-499.78,0.00032876,2]
[377470990,1754419855394,-904.26,0.00032876,2]
[377470991,1754419855404,-1124.32,0.00032876,2]
[377470992,1754419855414,-38601.17,0.00032876,2]
[377470993,1754419855424,-488.64,0.00032876,2]
[377470994,1754419855434,-2382.03,0.00032876,2]
[377470995,1754419855445,-1199.19,0.00032876,2]
[377470996,1754419855454,-460.0,0.00032876,2]
[377470997,1754419855463,-460.0,0.00032876,2]
[377470998,1754419855473,-3997.23,0.00032876,2]
[377470999,1754419855482,-579.23,0.00032876,2]
[377471000,1754419855491,-674.09,0.00032876,2]
[377471001,1754419855501,-516.72,0.00032876,2]
[377471002,1754419855510,-1204.67,0.00032876,2]
[377471003,1754419855519,-810.88,0.00032876,2]
[377471004,1754419855529,-664.72,0.00032876,2]
[377471005,1754419855539,-1871.09,0.00032876,120]
[377471006,1754419855548,-477.36,0.00032876,2]
[377471007,1754419855557,-460.0,0.00032876,2]
[377471008,1754419855566,-500.0,0.00032877,5]
[377471009,1754419855575,-1458.65,0.000329,7]
[377471010,1754419855584,-19414.75,0.000329,14]
[377471011,1754419855593,-960.0,0.00032908,2]
[377471012,1754419855603,-175.43024814,0.0003315,2]
[377471013,1754419855612,-460.36,0.0003315,2]
[377471014,1754419855621,-801.41,0.0003315,2]
[377471015,1754419855631,-789.85,0.0003315,2]
[377471016,1754419855641,-522.33,0.0003315,2]
[377471017,1754419855650,-1079.38,0.0003315,2]
[377471018,1754419855659,-460.0,0.0003315,2]
[377471019,1754419855668,-3041.31,0.0003315,2]
[377471020,1754419855677,-837.92,0.0003315,2]
[377471021,1754419855686,-820.86,0.0003315,2]
[377471022,1754419855695,-994.47,0.0003315,2]
[377471023,1754419855704,-719.43,0.0003315,2]
[377471024,1754419855713,-483.6,0.0003315,2]
[377471025,1754419855722,-463.11,0.0003315,2]
[377471026,1754419855732,-769.44,0.0003315,2]
[377471027,1754419855741,-563.71,0.0003315,2]
[377471028,1754419855750,-499.78,0.0003315,2]
[377471029,1754419855759,-904.26,0.0003315,2]
[377471030,1754419855768,-1124.32,0.0003315,2]
[377471031,1754419855777,-38601.17,0.0003315,2]
[377471032,1754419855786,-488.64,0.0003315,2]
[377471033,1754419855796,-2382.03,0.0003315,2]
[377471034,1754419855805,-1199.19,0.0003315,2]
[377471035,1754419855815,-460.0,0.0003315,2]
[377471036,1754419855824,-258.20501109,0.0003315,2]
[377471037,1754419855834,-3997.23,0.0003315,2]
[377471038,1754419855843,-579.23,0.0003315,2]
[377471039,1754419855853,-674.09,0.0003315,2]
[377471040,1754419855865,-516.72,0.0003315,2]
[377471041,1754419855875,-1204.67,0.0003315,2]
[377471042,1754419855884,-810.88,0.0003315,2]
[377471043,1754419855894,-664.72,0.0003315,2]
[377471044,1754419855903,-477.36,0.0003315,2]
[377471045,1754419855913,-395.138313,0.00033165,2]
[377471046,1754419855922,-250.0,0.00033304,2]
[377471047,1754419855931,-1259.04,0.00033423,2]
[377471048,1754419855941,-460.0,0.00033423,2]
[377471049,1754419855950,-460.36,0.00033424,2]
[377471050,1754419855960,-801.41,0.00033424,2]
[377471051,1754419856053,-789.85,0.00033424,2]
[377471052,1754419856062,-522.33,0.00033424,2]
[377471053,1754419856071,-1079.38,0.00033424,2]
[377471054,1754419856080,-460.0,0.00033424,2]
[377471055,1754419856089,-3041.31,0.00033424,2]
[377471056,1754419856098,-837.92,0.00033424,2]
[377471057,1754419856108,-820.86,0.00033424,2]
[377471058,1754419856117,-994.47,0.00033424,2]
[377471059,1754419856128,-719.43,0.00033424,2]
[377471060,1754419856137,-483.6,0.00033424,2]
[377471061,1754419856146,-463.11,0.00033424,2]
[377471062,1754419856156,-769.44,0.00033424,2]
[377471063,1754419856165,-563.71,0.00033424,2]
[377471064,1754419856174,-499.78,0.00033424,2]
[377471065,1754419856183,-904.26,0.00033424,2]
[377471066,1754419856192,-1124.32,0.00033424,2]
[377471067,1754419856201,-38601.17,0.00033424,2]
[377471068,1754419856211,-488.64,0.00033424,2]
[377471069,1754419856220,-2382.03,0.00033424,2]
[377471070,1754419856229,-1199.19,0.00033424,2]
[377471071,1754419856239,-255.26896313,0.00033424,2]
[377471072,1754419856250,-579.23,0.00033424,2]
[377471073,1754419856260,-3997.23,0.00033424,2]
[377471074,1754419856269,-674.09,0.00033424,2]
[377471075,1754419856279,-516.72,0.00033424,2]
[377471076,1754419856289,-1204.67,0.00033424,2]
[377471077,1754419856298,-810.88,0.00033424,2]
[377471078,1754419856308,-664.72,0.00033424,2]
[377471079,1754419856319,-477.36,0.00033424,2]
[377471080,1754419856328,-1060.0,0.00033456,2]
[377471081,1754419856338,-933.4,0.00033603,15]
[377471082,1754419856347,-1259.04,0.00033697,2]
[377471083,1754419856357,-460.0,0.00033697,2]
[377471084,1754419856371,-460.47,0.00033698,2]
[377471085,1754419856382,-801.53,0.00033698,2]
[377471086,1754419856391,-789.95472646,0.00033698,2]
[377471087,1754419856401,-522.33514132,0.00033698,2]
[377471088,1754419856413,-1079.49981265,0.00033698,2]
[377471089,1754419856423,-335.84897087,0.00033698,2]
[377471090,1754419856433,-3041.39182755,0.00033698,2]
[377471091,1754419856442,-838.08,0.00033698,2]
[377471092,1754419856454,-820.99605655,0.00033698,2]
[377471093,1754419856464,-994.54314282,0.00033698,2]
[377471094,1754419856473,-719.52946008,0.00033698,2]
[377471095,1754419856483,-483.61,0.00033698,2]
[377471096,1754419856492,-463.1599185,0.00033698,2]
[377471097,1754419856501,-769.63,0.00033698,2]
[377471098,1754419856510,-563.80367988,0.00033698,2]
[377471099,1754419856519,-500.01837642,0.00033698,2]
[377471100,1754419856529,-904.44547486,0.00033698,2]
[377471101,1754419856538,-1124.45,0.00033698,2]
[377471102,1754419856547,-38601.24,0.00033698,2]
[377471103,1754419856556,-488.64,0.00033698,2]
[377471104,1754419856565,-2382.1,0.00033698,2]
[377471105,1754419856574,-1199.28675839,0.00033698,2]
[377471106,1754419856583,-579.35219576,0.00033698,2]
[377471107,1754419856592,-3997.44016736,0.00033698,2]
[377471108,1754419856601,-674.31746107,0.00033698,2]
[377471109,1754419856611,-516.8,0.00033698,2]
[377471110,1754419856620,-1204.67,0.00033698,2]
[377471111,1754419856632,-810.88061379,0.00033698,2]
[377471112,1754419856642,-664.95721173,0.00033698,2]
[377471113,1754419856651,-1871.09,0.00033698,120]
[377471114,1754419856660,-477.40700729,0.00033698,2]
[377471115,1754419856669,-200.0,0.00033884,120]
[377471116,1754419856679,-261.599195,0.000339,7]
[377471117,1754419856688,-1259.04,0.00033971,2]
[377471118,1754419856697,-460.0,0.00033971,2]
[377471119,1754419856706,-488.81975813,0.00033972,2]
[377471120,1754419856716,-1160.0,0.00034004,2]
[377471121,1754419856725,-5551.94295129,0.00034024,2]
[377471122,1754419856734,-200.0,0.00034026,15]
[377471123,1754419856744,-200.0,0.00034026,15]
[377471124,1754419856753,-200.0,0.00034026,15]
[377471125,1754419856763,-379.0,0.00034026,15]
[377471126,1754419856772,-1259.04,0.00034245,2]
[377471127,1754419856781,-460.0,0.00034245,2]
[377471128,1754419856791,-500.0,0.00034246,120]
[377471129,1754419856800,-500.0,0.00034326,5]
[377471130,1754419856811,-1259.04,0.00034519,2]
[377471131,1754419856821,-460.0,0.00034519,2]
[377471132,1754419856831,-1871.09,0.0003452,120]
[377471133,1754419856841,-407.14428418,0.00034552,2]
[377471134,1754419856850,-1259.04,0.00034793,2]
[377471135,1754419856860,-460.0,0.00034793,2]
[377471136,1754419856869,-240.65,0.000348,2]
[377471137,1754419856879,-211.222188,0.00035012,2]
[377471138,1754419856889,-1259.04,0.00035067,2]
[377471139,1754419856899,-460.0,0.00035067,2]
[377471140,1754419856909,-1259.04,0.00035341,2]
[377471141,1754419856919,-460.0,0.00035341,2]
[377471142,1754419856928,-1871.09,0.00035342,120]
[377471143,1754419856937,-1152.0,0.00035343,2]
[377471144,1754419856947,-1259.04,0.00035615,2]
[377471145,1754419856957,-460.0,0.00035615,2]
[377471146,1754419856966,-500.0,0.00035616,120]
[377471147,1754419856976,-1000.0,0.00035616,5]
[377471148,1754419856985,-971.0,0.00035678,2]
[377471149,1754419856994,-636.0,0.00035678,2]
[377471150,1754419857003,-2148.0,0.00035678,2]
[377471151,1754419857012,-109615.18104721,0.0003568,2]
[377471152,1754419857022,-160.0,0.0003568,14]
[377471153,1754419857031,-160.0,0.0003568,14]
[377471154,1754419857039,-160.0,0.0003568,14]
[377471155,1754419857049,-166.0,0.0003568,14]
[377471156,1754419857058,-172.0,0.0003568,14]
[377471157,1754419857067,-160.0,0.0003568,14]
[377471158,1754419857076,-166.0,0.0003568,14]
[377471159,1754419857085,-162.70663404,0.0003568,14]
[377471160,1754419857094,-166.0,0.0003568,14]
[377471161,1754419857103,-166.0,0.0003568,14]
[377471162,1754419857112,-166.0,0.0003568,14]